bitfinex/quotes_SOLUSD_20240614
["timestamp","ask_amount","ask_price","bid_price","bid_amount"]
[1718387276706,7.8542,141.33,141.29,13.9373991]
[1718387277004,2.6176,141.35,141.31,23.5645]
[1718387277377,15.7057,141.35,141.31,23.5645]
[1718387277706,21.92643975,141.39,141.3,16.1206]
[1718387277707,7.8546,141.32,141.3,16.1206]
[1718387278000,7.8542,141.33,141.3,18.7391]
[1718387278201,18.3252,141.34,141.3,18.7391]
[1718387278202,23.561,141.34,141.3,23.976]
[1718387278389,2.6178,141.34,141.31,7.855]
[1718387278575,7.8534,141.34,141.3,39.6868]
[1718387278902,2.6179,141.34,141.31,7.855]
[1718387279202,13.0881,141.35,141.31,7.8548]
[1718387279504,2.6178,141.34,141.3,39.6865]
[1718387279800,26.1786,141.34,141.3,42.305]
[1718387280011,2.6179,141.34,141.3,37.0683]
[1718387280209,7.8536,141.34,141.3,42.3051]
[1718387280512,7.854,141.33,141.3,18.7391]
[1718387280805,7.854,141.33,141.3,16.1206]
[1718387281006,7.854,141.33,141.3,18.739]
[1718387281202,23.5619,141.33,141.3,16.1206]
[1718387281406,2.618,141.33,141.3,18.739]
[1718387281782,2.6181,141.32,141.3,16.1206]
[1718387281984,26.1798,141.33,141.3,16.1206]
[1718387282208,2.6181,141.32,141.3,16.1206]
[1718387282405,26.1798,141.33,141.3,16.1206]
[1718387282912,26.1798,141.33,141.29,33.5071991]
[1718387282913,2.6185,141.3,141.29,0.8438991]
[1718387283080,15.7103,141.31,141.29,0.8438991]
[1718387283283,26.1837,141.31,141.29,0.8438991]
[1718387283598,2.6184,141.31,141.29,0.8438991]
[1718387283913,2.6182,141.32,141.29,8.6997991]
[1718387284290,2.6181,141.33,141.3,7.8554]
[1718387284511,23.561,141.34,141.3,26.185]
[1718387284891,7.8538,141.33,141.29,24.4115991]
[1718387285201,7.29595455,141.37,141.29,0.8438991]
[1718387285408,21.92643975,141.39,141.29,0.8438991]
[1718387285617,2.6181,141.33,141.29,19.1743991]
[1718387285908,2.6181,141.32,141.29,16.5557991]
[1718387286109,2.6182,141.32,141.29,27.0303991]
[1718387286281,23.562,141.33,141.29,27.0303991]
[1718387286486,2.6181,141.32,141.29,27.0303991]
[1718387286687,23.562,141.33,141.3,2.6185]
[1718387286882,23.562,141.33,141.29,27.0302991]
[1718387287090,2.6181,141.32,141.29,27.0302991]
[1718387287396,23.562,141.33,141.29,27.0302991]
[1718387287397,26.1801,141.33,141.3,2.6185]
[1718387287596,26.179,141.34,141.31,2.6183]
[1718387288322,23.5611,141.34,141.3,23.5665]
[1718387288504,2.95133333,141.33,141.3,7.8554]
[1718387288713,2.95123333,141.33,141.3,23.5666]
[1718387288892,0.33333333,141.33,141.31,2.6183]
[1718387289087,0.33333333,141.33,141.3,26.1849]
[1718387289293,0.33333333,141.33,141.31,2.6183]
[1718387289508,2.6182,141.32,141.29,27.0298991]
[1718387289730,7.8555,141.3,141.29,0.8438991]
[1718387290021,26.1852,141.3,141.29,0.8438991]
[1718387290207,7.8555,141.3,141.29,0.8438991]
[1718387290988,2.6185,141.3,141.29,0.8438991]
[1718387291990,23.5661,141.31,141.29,0.8438991]
[1718387292195,7.8555,141.3,141.29,0.8438991]
[1718387292410,2.6185,141.3,141.29,0.8438991]
[1718387293009,7.8555,141.3,141.29,0.8438991]
[1718387293924,2.6185,141.3,141.29,0.8438991]
[1718387294098,26.1846,141.31,141.29,0.8438991]
[1718387294601,23.5653,141.31,141.29,0.8438991]
[1718387294819,2.6185,141.3,141.29,0.8438991]
[1718387295015,23.5653,141.31,141.29,0.8438991]
[1718387295215,26.1838,141.31,141.29,0.8438991]
[1718387295421,7.8553,141.31,141.29,0.8438991]
[1718387295823,2.6182,141.32,141.29,3.4624991]
[1718387296019,15.7092,141.32,141.29,3.4625991]
[1718387296205,7.8547,141.32,141.29,3.4625991]
[1718387296529,7.8546,141.32,141.29,3.4624991]
[1718387296732,7.855,141.31,141.29,0.8438991]
[1718387296936,7.8555,141.3,141.29,0.8438991]
[1718387297126,2.6185,141.3,141.29,0.8438991]
[1718387297739,23.5645,141.32,141.29,0.8438991]
[1718387297898,26.1828,141.32,141.29,0.8438991]
[1718387298104,2.6183,141.31,141.29,0.8438991]
[1718387298314,18.3285,141.31,141.29,0.8438991]
[1718387298632,2.618,141.33,141.3,26.1847]
[1718387298801,2.6182,141.32,141.29,27.0299991]
[1718387298997,26.1804,141.33,141.29,24.4118991]
[1718387299228,2.6181,141.32,141.29,27.0303991]
[1718387299426,2.6181,141.32,141.29,8.6995991]
[1718387299731,107.30121338,141.38,141.29,0.8438991]
[1718387299926,2.6185,141.3,141.29,0.8438991]
[1718387300127,7.8553,141.31,141.29,0.8438991]
[1718387300432,26.1852,141.3,141.29,0.8438991]
[1718387300628,2.6185,141.3,141.29,0.8438991]
[1718387301103,26.1852,141.3,141.29,0.8438991]
[1718387301424,2.6185,141.3,141.29,0.8438991]
[1718387302129,7.8555,141.3,141.29,0.8438991]
[1718387302434,26.1846,141.31,141.29,0.8438991]
[1718387302814,2.6185,141.3,141.29,0.8438991]
[1718387303224,7.8555,141.3,141.29,0.8438991]
[1718387303421,15.7111,141.3,141.29,0.8438991]
[1718387303811,2.6185,141.3,141.29,0.8438991]
[1718387304536,26.1843,141.31,141.29,0.8438991]
[1718387304733,23.5643,141.32,141.29,0.8438991]
[1718387304933,26.1825,141.32,141.29,3.4624991]
[1718387305233,7.8547,141.32,141.29,8.6998991]
[1718387305831,7.8537,141.34,141.31,2.6182]
[1718387306139,5.235,141.36,141.32,7.8545]
[1718387306321,2.6176,141.35,141.32,23.5627]
[1718387306525,26.1745,141.36,141.33,2.6179]
[1718387306709,26.1745,141.36,141.32,26.1806]
[1718387306710,2.6176,141.35,141.32,26.1806]
[1718387306910,23.557,141.36,141.33,2.6179]
[1718387307209,7.8545,141.32,141.29,8.6997991]
[1718387307406,26.1807,141.33,141.3,2.6185]
[1718387307616,26.1807,141.33,141.3,7.8555]
[1718387307617,18.3266,141.33,141.3,7.8555]
[1718387307816,2.6181,141.33,141.3,26.1851]
[1718387308019,26.1767,141.35,141.32,2.618]
[1718387308328,2.6177,141.35,141.32,7.8543]
[1718387308521,7.853,141.35,141.32,2.618]
[1718387308722,7.8535,141.34,141.31,7.8548]
[1718387308956,7.854,141.33,141.3,7.8551]
[1718387309437,15.7079,141.33,141.3,7.8551]
[1718387310020,2.618,141.33,141.31,2.6183]
[1718387310227,23.5567,141.36,141.32,23.563]
[1718387310437,23.5567,141.36,141.33,7.8536]
[1718387310438,2.6174,141.36,141.33,7.8536]
[1718387310648,2.6176,141.35,141.32,26.1803]
[1718387310857,26.1745,141.36,141.33,2.6179]
[1718387311037,7.8519,141.37,141.34,7.8532]
[1718387311349,2.6173,141.37,141.34,23.56]
[1718387311662,2.6173,141.37,141.34,2.6176]
[1718387311663,2.6174,141.36,141.34,2.6176]
[1718387311860,2.6174,141.36,141.33,15.7072]
[1718387312025,26.1728,141.37,141.34,2.6177]
[1718387312230,7.8523,141.36,141.33,26.1787]
[1718387312536,2.6175,141.36,141.34,2.6177]
[1718387312849,2.6175,141.36,141.33,26.1787]
[1718387313036,7.8523,141.36,141.33,26.1787]
[1718387313245,7.8525,141.36,141.33,7.8535]
[1718387313552,23.37263812,141.39,141.29,0.8438991]
[1718387313553,2.6184,141.31,141.29,3.4624991]
[1718387313795,7.8555,141.3,141.29,0.8438991]
[1718387313949,26.1852,141.3,141.29,0.8438991]
[1718387316930,26.6952,141.3,141.29,0.8438991]
[1718387317345,26.8652,141.3,141.29,0.8438991]
[1718387318754,26.8652,141.3,141.19,6.0717]
[1718387318755,0.17,141.29,141.2,2.6202]
[1718387318954,0.17,141.29,141.19,2.6204]
[1718387318955,5.2401,141.22,141.19,2.6204]
[1718387319146,106.6036,141.28,141.18,15.5713]
[1718387319346,0.68,141.27,141.18,15.5713]
[1718387319668,15.719,141.23,141.2,7.8609]
[1718387319863,6.6036,141.28,141.18,15.5713]
[1718387320071,6.6036,141.28,141.18,45.8713]
[1718387320072,5.2378,141.28,141.18,45.8713]
[1718387320250,2.6196,141.25,141.18,15.5713]
[1718387320451,23.5755,141.25,141.22,2.6199]
[1718387320662,2.6194,141.25,141.23,2.6198]
[1718387320872,2.6195,141.25,141.23,2.6198]
[1718387321050,7.8584,141.25,141.22,26.1995]
[1718387321252,7.8584,141.25,141.22,26.1996]
[1718387321452,26.1948,141.25,141.22,7.8598]
[1718387322060,26.1948,141.25,141.21,18.3407]
[1718387322061,7.8589,141.24,141.21,26.2009]
[1718387322253,2.6196,141.24,141.22,2.62]
[1718387322453,2.6196,141.24,141.21,26.2009]
[1718387322454,7.8589,141.24,141.21,26.2009]
[1718387322649,13.0993,141.23,141.2,7.8608]
[1718387322869,5.24,141.22,141.19,26.2043]
[1718387323071,15.7193,141.23,141.2,7.8609]
[1718387323278,26.1987,141.23,141.2,7.8609]
[1718387323456,7.8596,141.23,141.2,13.1018]
[1718387323779,7.86,141.22,141.19,26.2046]
[1718387323950,23.5788,141.23,141.2,2.6203]
[1718387324145,2.62,141.22,141.19,23.5844]
[1718387324371,26.2004,141.22,141.19,7.8615]
[1718387324991,7.8618,141.19,141.16,13.9909]
[1718387325152,7.8618,141.19,141.14,17.1466991]
[1718387325153,2.6208,141.18,141.15,5.2423]
[1718387325361,7.8623,141.18,141.15,23.5912]
[1718387325657,5.2438,141.12,141.09,2.6223]
[1718387325882,7.8664,141.11,141.08,2.6225]
[1718387326191,122.2641,141.18,141.07,15.5713]
[1718387326192,22.2641,141.18,141.07,15.5713]
[1718387326486,22.2641,141.18,141.03,37.481]
[1718387326487,5.2423,141.16,141.13,2.6215]
[1718387326653,18.3448,141.19,141.08,6.5434]
[1718387326855,10.482,141.2,141.11,15.3599]
[1718387327084,22.5231,141.22,141.11,15.3599]
[1718387327290,2.6201,141.22,141.19,7.8614]
[1718387327457,2.62,141.22,141.2,2.6203]
[1718387327652,12.9807075,141.25,141.11,66.9099]
[1718387327653,7.8611,141.2,141.17,7.8626]
[1718387327859,7.8602,141.22,141.19,2.6205]
[1718387328088,12.9807075,141.25,141.15,6.5434]
[1718387328089,7.29503626,141.25,141.15,6.5434]
[1718387328296,5.2398,141.23,141.19,20.9641]
[1718387328459,2.6203,141.21,141.15,6.5434]
[1718387328653,2.6203,141.2,141.18,2.6206]
[1718387328962,2.6201,141.22,141.19,7.8615]
[1718387329168,2.6202,141.21,141.18,26.2066]
[1718387329369,2.6202,141.21,141.19,2.6205]
[1718387329557,2.6202,141.21,141.18,26.2066]
[1718387329756,26.2003,141.22,141.19,2.6205]
[1718387329983,26.1991,141.23,141.2,2.6203]
[1718387330194,7.29503626,141.25,141.17,30.3]
[1718387330398,6.4948,141.26,141.17,30.3]
[1718387330399,5.2386,141.26,141.17,30.3]
[1718387330691,6.6183,141.29,141.17,30.3]
[1718387330692,12.54021118,141.28,141.19,15.4074]
[1718387330864,7.8569,141.28,141.25,2.6194]
[1718387331063,2.6191,141.27,141.24,26.1952]
[1718387331267,2.6191,141.27,141.19,15.4074]
[1718387331268,2.6189,141.28,141.25,23.5749]
[1718387331481,2.6191,141.27,141.25,2.6193]
[1718387331667,23.5703,141.28,141.25,2.6193]
[1718387331979,2.619,141.28,141.25,15.7163]
[1718387332178,2.619,141.28,141.26,2.6192]
[1718387332386,7.8568,141.28,141.25,7.858]
[1718387332785,23.5687,141.29,141.26,2.6192]
[1718387332995,2.6189,141.28,141.25,26.1937]
[1718387333197,2.6189,141.28,141.26,2.6192]
[1718387333388,23.5702,141.28,141.25,2.6193]
[1718387333592,7.8568,141.28,141.25,7.8582]
[1718387333800,15.7136,141.28,141.25,7.8582]
[1718387334097,26.188,141.29,141.26,7.8577]
[1718387334295,2.6188,141.29,141.26,26.1925]
[1718387334498,7.8562,141.29,141.26,26.1925]
[1718387334697,15.7124,141.29,141.26,7.8576]
[1718387335013,5.2379,141.28,141.25,2.6194]
[1718387335172,136.44376666,141.33,141.19,15.4074]
[1718387335374,2.6193,141.26,141.23,13.0989]
[1718387335594,7.8578,141.26,141.23,26.1978]
[1718387336320,2.6193,141.26,141.23,5.2395]
[1718387336488,7.8579,141.26,141.23,15.7185]
[1718387336798,0.17,141.3,141.19,15.4074]
[1718387336985,7.859,141.24,141.21,15.721]
[1718387337183,10.4788,141.24,141.21,5.2402]
[1718387337486,26.1954,141.25,141.22,7.86]
[1718387337676,15.7172,141.25,141.22,7.86]
[1718387337997,2.6196,141.25,141.23,2.6198]
[1718387338201,2.6194,141.26,141.19,15.4074]
[1718387338381,2.6191,141.27,141.25,2.6194]
[1718387338584,26.1902,141.28,141.25,2.6194]
[1718387338895,2.6188,141.29,141.2,30.47]
[1718387339083,2.6188,141.29,141.27,2.619]
[1718387339401,7.8562,141.29,141.26,26.1921]
[1718387339786,15.7124,141.29,141.26,7.8574]
[1718387339993,30.61562503,141.33,141.22,6.162]
[1718387340300,7.8556,141.3,141.27,15.7141]
[1718387340681,2.6184,141.31,141.28,23.5699]
[1718387340881,2.6185,141.3,141.28,2.6187]
[1718387341087,15.7111,141.3,141.27,7.8569]
[1718387341293,2.6189,141.28,141.26,2.6192]
[1718387341490,13.0938,141.29,141.25,23.5743]
[1718387341678,2.6189,141.28,141.26,2.6192]
[1718387341986,23.569,141.29,141.26,15.7155]
[1718387341987,7.8563,141.29,141.26,15.7155]
[1718387342298,16.7,141.33,141.23,0.17]
[1718387342500,16.7,141.33,141.32,26.1815]
[1718387343797,16.7,141.33,141.32,15.7089]
[1718387344004,16.7,141.33,141.32,26.1815]
[1718387344870,16.7,141.33,141.32,2.6181]
[1718387345076,23.5643,141.32,141.29,2.6187]
[1718387345277,2.6184,141.31,141.29,2.6187]
[1718387345478,26.1825,141.32,141.29,15.7122]
[1718387345679,7.855,141.31,141.28,26.1878]
[1718387345885,2.6184,141.31,141.29,2.6186]
[1718387346294,7.8551,141.31,141.28,23.5693]
[1718387346503,2.6184,141.31,141.28,23.5693]
[1718387346703,2.6184,141.31,141.29,2.6186]
[1718387347010,2.6184,141.31,141.29,7.8559]
[1718387347011,2.6183,141.31,141.29,7.8559]
[1718387347184,7.8549,141.32,141.3,2.6185]
[1718387347377,16.7,141.33,141.25,6.5061]
[1718387347579,16.7,141.33,141.32,26.1815]
[1718387347993,16.7,141.33,141.31,15.7095]
[1718387348206,16.7,141.33,141.32,26.1815]
[1718387350781,35.0266,141.33,141.3,2.6184]
[1718387350988,35.0266,141.33,141.3,7.8554]
[1718387350989,2.6181,141.32,141.3,7.8554]
[1718387351288,13.0909,141.32,141.29,5.2373]
[1718387351488,2.6185,141.3,141.28,7.8565]
[1718387351817,2.6187,141.29,141.27,2.6189]
[1718387351988,2.6184,141.31,141.29,2.6187]
[1718387352189,15.7102,141.31,141.28,26.1881]
[1718387352425,23.5652,141.31,141.28,26.1881]
[1718387352591,26.1837,141.31,141.28,26.1881]
[1718387352920,23.2669,141.33,141.25,5.2388]
[1718387353135,23.2669,141.33,141.25,2.6193]
[1718387353302,2.6195,141.25,141.17,22.3351]
[1718387353619,16.1393,141.27,141.17,43.5851]
[1718387353781,2.6189,141.28,141.26,2.6192]
[1718387353988,5.2375,141.29,141.27,2.619]
[1718387354298,15.7125,141.29,141.26,26.1924]
[1718387354501,26.1877,141.29,141.26,7.8575]
[1718387354812,23.51267387,141.31,141.24,26.1955]
[1718387354813,15.7148,141.27,141.24,26.1955]
[1718387355012,23.5719,141.27,141.24,7.8586]
[1718387355191,23.5719,141.27,141.25,2.6194]
[1718387355192,7.8575,141.27,141.25,2.6194]
[1718387355390,7.8586,141.25,141.22,15.7197]
[1718387355732,2.6197,141.24,141.22,2.6198]
[1718387356213,26.1949,141.25,141.22,15.7198]
[1718387356411,7.8586,141.25,141.23,2.6198]
[1718387356603,26.1937,141.26,141.23,7.8594]
[1718387356808,2.6192,141.27,141.25,2.6194]
[1718387357020,7.8574,141.27,141.24,23.5761]
[1718387357216,7.8574,141.27,141.24,26.1956]
[1718387357533,7.8578,141.26,141.24,2.6195]
[1718387357687,7.8578,141.26,141.24,2.6196]
[1718387358184,18.334,141.27,141.24,15.7176]
[1718387358417,2.6192,141.26,141.24,7.8588]
[1718387358589,23.572,141.27,141.24,2.6196]
[1718387358794,13.0958,141.27,141.24,2.6195]
[1718387359103,7.8584,141.25,141.23,2.6197]
[1718387359499,2.6195,141.25,141.23,7.8593]
[1718387360128,26.1935,141.26,141.23,7.8593]
[1718387360610,26.1918,141.27,141.24,15.7177]
[1718387360816,26.1918,141.27,141.25,2.6194]
[1718387360817,2.6192,141.27,141.25,2.6194]
[1718387361410,7.8573,141.27,141.25,2.6194]
[1718387361709,7.8573,141.27,141.23,26.1972]
[1718387361710,7.8578,141.26,141.23,26.1972]
[1718387361918,15.7156,141.26,141.23,26.1972]
[1718387362117,223.51267387,141.31,141.17,22.3351]
[1718387362408,5.2398,141.23,141.2,7.8608]
[1718387362654,2.62,141.22,141.2,7.8608]
[1718387362798,23.5775,141.24,141.21,2.6201]
[1718387362995,2.6199,141.23,141.21,2.6201]
[1718387363198,7.8596,141.23,141.21,2.6202]
[1718387363427,2.6199,141.23,141.21,2.6202]
[1718387363607,2.6199,141.23,141.21,7.8606]
[1718387363924,2.6199,141.23,141.21,2.6202]
[1718387364128,2.6199,141.23,141.2,2.6202]
[1718387364129,2.6201,141.22,141.2,2.6202]
[1718387364498,7.8601,141.22,141.2,2.6202]
[1718387364694,7.8601,141.22,141.19,23.5844]
[1718387364695,2.6201,141.22,141.19,23.5844]
[1718387364923,2.6201,141.22,141.2,2.6203]
[1718387365220,2.6201,141.22,141.2,7.861]
[1718387365527,23.5777,141.24,141.21,7.8604]
[1718387365719,2.6198,141.23,141.21,7.8604]
[1718387366021,13.43754199,141.26,141.25,2.6194]
[1718387366022,7.37144199,141.26,141.25,2.6194]
[1718387366225,15.7146,141.27,141.24,26.1958]
[1718387366517,2.6191,141.27,141.25,2.6194]
[1718387366727,15.7147,141.27,141.24,7.8584]
[1718387366907,2.6191,141.27,141.25,2.6193]
[1718387367108,7.8573,141.27,141.25,2.6193]
[1718387367318,2.6191,141.27,141.25,2.6193]
[1718387367514,15.7146,141.27,141.24,26.1953]
[1718387367737,26.1929,141.26,141.23,7.859]
[1718387367935,26.1919,141.27,141.24,7.8588]
[1718387368101,10.4757,141.28,141.25,26.1933]
[1718387368303,2.6191,141.27,141.25,2.6193]
[1718387368625,7.37038083,141.3,141.22,0.17]
[1718387368802,7.8558,141.3,141.27,26.1904]
[1718387369009,7.8558,141.3,141.28,2.6188]
[1718387369010,2.6186,141.3,141.28,2.6188]
[1718387369207,2.6186,141.3,141.28,7.8566]
[1718387369412,15.7104,141.31,141.28,26.1883]
[1718387369729,2.6191,141.27,141.24,18.3367]
[1718387369911,10.4766,141.27,141.24,2.6196]
[1718387370111,23.5722,141.27,141.24,7.8588]
[1718387370427,7.8584,141.25,141.22,15.7195]
[1718387370599,2.6194,141.25,141.23,7.8593]
[1718387370799,2.6196,141.24,141.22,7.8599]
[1718387371003,130.71108174,141.33,141.17,73.7223]
[1718387371004,5.2387,141.26,141.23,15.7186]
[1718387371220,23.5721,141.27,141.24,15.7175]
[1718387371431,23.5721,141.27,141.23,10.4787]
[1718387371432,23.5735,141.26,141.23,5.2394]
[1718387371623,2.6195,141.25,141.23,7.8591]
[1718387371801,2.6194,141.25,141.23,15.7186]
[1718387372007,26.1929,141.26,141.23,26.1979]
[1718387372427,2.6194,141.25,141.23,26.1979]
[1718387372631,26.1929,141.26,141.23,26.1979]
[1718387373015,2.6195,141.25,141.23,7.8591]
[1718387373238,23.5772,141.24,141.21,7.8603]
[1718387373407,2.6197,141.24,141.22,7.86]
[1718387373617,15.4238,141.29,141.17,22.1323]
[1718387373618,7.858,141.26,141.24,2.6196]
[1718387373933,15.4238,141.29,141.22,26.1993]
[1718387373934,13.0974,141.25,141.22,26.1993]
[1718387374229,7.8595,141.23,141.2,23.5829]
[1718387374530,26.1966,141.24,141.21,23.5813]
[1718387374843,23.577,141.24,141.21,2.62]
[1718387375005,7.8595,141.23,141.21,2.62]
[1718387375202,7.8593,141.24,141.22,2.6199]
[1718387375413,26.197,141.24,141.22,2.62]
[1718387375738,7.8592,141.24,141.22,2.62]
[1718387376239,15.7181,141.24,141.21,26.2017]
[1718387376407,2.6198,141.23,141.21,26.2017]
[1718387376732,23.577,141.24,141.21,15.7208]
[1718387376920,7.8592,141.24,141.22,2.62]
[1718387377125,7.8592,141.24,141.21,7.8605]
[1718387377126,2.6199,141.23,141.21,7.8605]
[1718387377332,15.719,141.23,141.2,23.5828]
[1718387377505,2.62,141.22,141.2,7.8607]
[1718387377711,2.6202,141.21,141.19,26.2043]
[1718387378013,26.2003,141.22,141.19,26.2043]
[1718387378341,15.7201,141.22,141.19,26.2043]
[1718387378630,2.6203,141.21,141.19,7.8616]
[1718387378834,26.2012,141.22,141.19,15.7232]
[1718387379035,26.2012,141.22,141.2,7.861]
[1718387379036,2.6201,141.22,141.2,7.861]
[1718387379335,2.6198,141.23,141.21,7.8604]
[1718387379519,26.1974,141.24,141.21,15.721]
[1718387379717,2.6196,141.24,141.22,2.6199]
[1718387379922,0.17,141.28,141.22,7.8598]
[1718387380114,15.7158,141.26,141.23,26.1971]
[1718387380322,2.6195,141.25,141.23,7.8592]
[1718387380546,7.8585,141.25,141.22,23.5791]
[1718387380834,2.6196,141.24,141.22,7.8597]
[1718387381041,22.79558427,141.29,141.21,2.6201]
[1718387381222,2.62,141.22,141.2,26.2023]
[1718387381419,2.62,141.22,141.2,7.8607]
[1718387381810,7.8598,141.23,141.2,23.583]
[1718387382227,7.8592,141.24,141.22,2.6199]
[1718387382423,2.6198,141.23,141.21,7.8605]
[1718387382624,23.5787,141.23,141.2,7.8607]
[1718387382824,2.6201,141.22,141.2,2.6202]
[1718387383024,7.8602,141.22,141.2,2.6202]
[1718387383223,15.7202,141.22,141.19,26.2044]
[1718387383536,2.6198,141.23,141.21,2.62]
[1718387383940,7.8592,141.24,141.22,2.6199]
[1718387384244,2.6198,141.23,141.21,7.8604]
[1718387384443,26.197,141.24,141.21,23.5817]
[1718387384750,2.6198,141.23,141.21,2.6201]
[1718387384951,7.8593,141.24,141.21,23.5817]
[1718387385236,7.8593,141.24,141.22,2.6199]
[1718387385441,15.7168,141.25,141.17,15.8537]
[1718387385650,2.6197,141.24,141.22,2.6199]
[1718387385939,7.859,141.24,141.22,2.6199]
[1718387386134,2.6198,141.23,141.21,7.8601]
[1718387386538,26.1967,141.24,141.21,15.7207]
[1718387386853,7.8591,141.24,141.22,2.62]
[1718387387062,2.6198,141.24,141.22,7.86]
[1718387387349,26.1986,141.23,141.2,15.722]
[1718387387557,26.1986,141.23,141.21,2.6202]
[1718387387856,26.1986,141.23,141.2,7.8609]
[1718387387857,23.579,141.23,141.2,7.8609]
[1718387388022,2.62,141.22,141.2,7.8609]
[1718387388342,26.1989,141.23,141.2,15.722]
[1718387388527,2.62,141.22,141.2,7.8609]
[1718387388726,7.86,141.22,141.2,2.6203]
[1718387389041,15.72,141.22,141.2,2.6203]
[1718387389240,7.86,141.22,141.2,2.6203]
[1718387390161,2.62,141.22,141.2,2.6203]
[1718387390452,23.5791,141.23,141.2,15.7221]
[1718387390453,26.199,141.23,141.2,15.7221]
[1718387390820,26.199,141.23,141.2,26.2036]
[1718387391156,26.199,141.23,141.2,18.3425]
[1718387391157,2.62,141.22,141.2,18.3425]
[1718387391328,2.6199,141.23,141.2,18.3426]
[1718387391529,2.6199,141.23,141.21,7.8605]
[1718387391828,2.6198,141.23,141.21,26.2016]
[1718387392036,23.5739,141.26,141.23,7.8593]
[1718387392240,2.6193,141.26,141.24,2.6196]
[1718387392449,2.6193,141.26,141.23,26.1976]
[1718387392450,26.193,141.26,141.23,26.1976]
[1718387392655,2.6196,141.24,141.22,26.1995]
[1718387392852,23.5752,141.25,141.22,26.1995]
[1718387393150,7.8589,141.24,141.22,7.8596]
[1718387393353,15.7178,141.24,141.22,2.6198]
[1718387393568,2.6198,141.23,141.22,2.6198]
[1718387393771,13.1012,141.21,141.19,2.6205]
[1718387394075,2.6205,141.2,141.18,15.7244]
[1718387394226,23.5826,141.21,141.18,15.7244]
[1718387394227,7.8609,141.21,141.19,2.6205]
[1718387394745,26.201,141.22,141.2,2.6203]
[1718387394930,2.6202,141.21,141.19,26.2053]
[1718387395134,7.8602,141.22,141.2,7.8609]
[1718387395348,2.62,141.22,141.2,7.8609]
[1718387395650,2.6201,141.22,141.2,2.6203]
[1718387395858,2.6201,141.22,141.2,7.861]
[1718387396020,0.17,141.28,141.17,15.8537]
[1718387396224,2.6207,141.18,141.16,7.8632]
[1718387396541,26.2052,141.2,141.17,15.7254]
[1718387396753,20.962,141.21,141.18,15.7242]
[1718387396956,15.6612,141.23,141.17,7.8628]
[1718387396957,15.6612,141.23,141.17,5.2417]
[1718387397133,2.6208,141.18,141.16,2.621]
[1718387397453,26.205,141.2,141.17,26.209]
[1718387397653,2.6205,141.19,141.17,26.209]
[1718387397963,23.5845,141.2,141.14,15.8712]
[1718387397964,5.2409,141.2,141.14,15.8712]
[1718387398147,2.6204,141.2,141.18,7.8621]
[1718387398336,2.6206,141.19,141.17,7.8627]
[1718387398537,15.6612,141.23,141.14,15.8712]
[1718387398538,0.17,141.22,141.14,15.8712]
[1718387398734,15.6612,141.23,141.14,15.8712]
[1718387398951,5.24,141.22,141.14,15.8712]
[1718387399253,2.6198,141.23,141.21,7.8603]
[1718387399452,23.5774,141.24,141.21,5.2403]
[1718387399629,23.5774,141.24,141.22,7.8598]
[1718387399630,2.6197,141.24,141.22,7.8598]
[1718387399832,2.6196,141.25,141.23,7.8594]
[1718387400053,23.5721,141.27,141.24,7.8588]
[1718387400228,7.36317196,141.29,141.26,5.2384]
[1718387400430,2.6188,141.29,141.27,7.8571]